fUSD/lending_fUSD_20260512
["ID","MTS","AMOUNT","RATE_DAILY","PERIOD"]
[422071106,1778549306000,538.03,8.126e-05,2]
[422071105,1778549306000,538.03,7.784e-05,2]
[422071104,1778549306000,538.03,7.442e-05,2]
[422071103,1778549306000,538.03,7.101e-05,2]
[422071108,1778549404000,166.5,0.00027397,120]
[422071109,1778549431000,-538.03,8.81e-05,2]
[422071111,1778549431000,-150.0,8.897e-05,2]
[422071113,1778549431000,-150.0,8.985e-05,2]
[422071114,1778549431000,-150.0,9.073e-05,2]
[422071115,1778549431000,-538.03,9.151e-05,2]
[422071116,1778549431000,-150.0,9.161e-05,2]
[422071119,1778549431000,-150.0,9.426e-05,2]
[422071118,1778549431000,-150.0,9.338e-05,2]
[422071120,1778549431000,-538.03,9.493e-05,2]
[422071121,1778549431000,-150.0,9.514e-05,2]
[422071122,1778549431000,-205.0,9.602e-05,2]
[422071123,1778549431000,-538.03,9.835e-05,2]
[422071117,1778549431000,-150.0,9.249e-05,2]
[422071152,1778549432000,-150.0,0.00013446,2]
[422071146,1778549432000,-150.0,0.00013389,2]
[422071151,1778549432000,-150.0,0.00013421,2]
[422071147,1778549432000,-150.0,0.00013389,2]
[422071148,1778549432000,-150.0,0.00013389,2]
[422071145,1778549432000,-150.0,0.00013389,2]
[422071149,1778549432000,-150.0,0.00013389,2]
[422071154,1778549432000,-150.0,0.00013503,2]
[422071167,1778549432000,-175.59,0.00013825,2]
[422071166,1778549432000,-150.0,0.0001379,2]
[422071153,1778549432000,-161.89,0.00013503,2]
[422071165,1778549432000,-150.0,0.00013732,2]
[422071157,1778549432000,-150.0,0.00013618,2]
[422071161,1778549432000,-150.0,0.00013675,2]
[422071163,1778549432000,-166.66,0.00013699,2]
[422071162,1778549432000,-2338.02,0.00013699,2]
[422071159,1778549432000,-161.91,0.00013666,2]
[422071150,1778549432000,-302.05,0.00013393,2]
[422071164,1778549432000,-302.05,0.00013728,2]
[422071142,1778549432000,-239.73,0.00013336,2]
[422071135,1778549432000,-200.0,0.00012923,2]
[422071143,1778549432000,-150.0,0.00013389,2]
[422071169,1778549432000,-150.0,0.00013847,2]
[422071124,1778549432000,-538.03,0.00010177,2]
[422071129,1778549432000,-169.34,0.00011649,2]
[422071127,1778549432000,-538.03,0.00011202,2]
[422071125,1778549432000,-538.03,0.00010518,2]
[422071126,1778549432000,-538.03,0.0001086,2]
[422071128,1778549432000,-538.03,0.00011544,2]
[422071131,1778549432000,-538.03,0.00012227,2]
[422071144,1778549432000,-150.0,0.00013389,2]
[422071130,1778549432000,-538.03,0.00011886,2]
[422071132,1778549432000,-538.03,0.00012569,2]
[422071137,1778549432000,-504.02663221,0.00013253,2]
[422071136,1778549432000,-34.00336779,0.00013253,2]
[422071138,1778549432000,-198.87,0.00013258,2]
[422071133,1778549432000,-1549.076169,0.00012846,2]
[422071139,1778549432000,-300.0,0.00013271,2]
[422071140,1778549432000,-5305.79,0.00013272,2]
[422071141,1778549432000,-1414.702242,0.00013289,2]
[422071134,1778549432000,-538.03,0.00012911,2]
[422071179,1778549432000,-302.05,0.00014063,2]
[422071155,1778549432000,-150.0,0.00013561,2]
[422071178,1778549432000,-150.0,0.00014018,2]
[422071203,1778549432000,-302.05,0.00014732,2]
[422071192,1778549432000,-302.05,0.00014397,2]
[422071204,1778549432000,-150.0,0.00014762,2]
[422071194,1778549432000,-150.0,0.00014419,2]
[422071199,1778549432000,-241.716703,0.00014602,2]
[422071200,1778549432000,-150.0,0.00014648,2]
[422071198,1778549432000,-150.0,0.00014591,2]
[422071197,1778549432000,-419.44,0.00014562,2]
[422071196,1778549432000,-150.0,0.00014533,2]
[422071195,1778549432000,-150.0,0.00014476,2]
[422071202,1778549432000,-150.0,0.00014705,2]
[422071206,1778549432000,-214.28850888,0.0001479,2]
[422071209,1778549432000,-49543.15734898,0.000148,2]
[422071208,1778549432000,-206.41732371,0.00014799,2]
[422071210,1778549432000,-1009.52478158,0.000148,2]
[422071207,1778549432000,-1001.91634798,0.00014799,2]
[422071212,1778549432000,-5529.0,0.000148,2]
[422071170,1778549432000,-150.0,0.00013885,2]
[422071201,1778549432000,-600.0,0.000147,5]
[422071193,1778549432000,-1544.95,0.00014403,2]
[422071205,1778549432000,-172.0,0.00014767,2]
[422071188,1778549432000,-1852.42,0.00014335,2]
[422071168,1778549432000,-166.66,0.00013836,2]
[422071171,1778549432000,-150.0,0.00013887,2]
[422071172,1778549432000,-150.0,0.00013904,2]
[422071177,1778549432000,-167.91,0.00014013,2]
[422071189,1778549432000,-150.0,0.00014362,2]
[422071173,1778549432000,-500.0,0.00013904,2]
[422071175,1778549432000,-166.66,0.00013973,2]
[422071176,1778549432000,-250.0,0.00014,2]
[422071174,1778549432000,-150.0,0.00013961,2]
[422071181,1778549432000,-166.66,0.0001411,2]
[422071211,1778549432000,-464.29087844,0.000148,2]
[422071180,1778549432000,-150.0,0.00014076,2]
[422071183,1778549432000,-500.0,0.00014178,2]
[422071187,1778549432000,-150.0,0.00014305,2]
[422071185,1778549432000,-166.66,0.00014247,2]
[422071184,1778549432000,-150.0,0.0001419,2]
[422071190,1778549432000,-150.0,0.00014381,2]
[422071186,1778549432000,-150.0,0.00014247,2]
[422071182,1778549432000,-150.0,0.00014133,2]
[422071191,1778549432000,-166.66,0.00014384,2]
[422071226,1778549438000,-500.0,0.00014799,2]
[422071227,1778549438000,-500.0,0.00014799,2]
[422071231,1778549438000,-28891.09144386,0.000148,2]
[422071224,1778549438000,-500.0,0.00014799,2]
[422071223,1778549438000,-500.0,0.00014799,2]
[422071218,1778549438000,-500.0,0.00014799,2]
[422071220,1778549438000,-500.0,0.00014799,2]
[422071221,1778549438000,-500.0,0.00014799,2]
[422071219,1778549438000,-500.0,0.00014799,2]
[422071217,1778549438000,-162.97443306,0.000147,2]
[422071228,1778549438000,-500.0,0.00014799,2]
[422071222,1778549438000,-500.0,0.00014799,2]
[422071229,1778549438000,-236.60315157,0.00014799,2]
[422071225,1778549438000,-500.0,0.00014799,2]
[422071233,1778549438000,-382.87551845,0.000148,2]
[422071230,1778549438000,-500.0,0.00014799,2]
[422071243,1778549438000,-4100.03949828,0.000148,2]
[422071245,1778549438000,-2527.28622367,0.000148,2]
[422071240,1778549438000,-506.95698204,0.000148,2]
[422071242,1778549438000,-108.6013159,0.000148,2]
[422071244,1778549438000,-1130.1168699,0.000148,2]
[422071238,1778549438000,-4588.86443764,0.000148,2]
[422071241,1778549438000,-2058.36988789,0.000148,2]
[422071237,1778549438000,-352.3851942,0.000148,2]
[422071235,1778549438000,-2000.0,0.000148,2]
[422071236,1778549438000,-547.40929043,0.000148,2]
[422071232,1778549438000,-1386.34858037,0.000148,2]
[422071239,1778549438000,-1287.53908397,0.000148,2]
[422071234,1778549438000,-374.68915625,0.000148,2]
[422071287,1778549441000,-307.57227381,0.00016373,2]
[422071290,1778549441000,-500.26112075,0.00016438,2]
[422071281,1778549441000,-3200.0,0.000159,5]
[422071289,1778549441000,-487.9776666,0.00016438,2]
[422071282,1778549441000,-300.0,0.00016,2]
[422071284,1778549441000,-500.0,0.00016373,2]
[422071274,1778549441000,-198.87,0.00014915,2]
[422071288,1778549441000,-392.0,0.00016438,2]
[422071273,1778549441000,-1900.0,0.000149,5]
[422071286,1778549441000,-500.0,0.00016373,2]
[422071283,1778549441000,-500.0,0.00016373,2]
[422071298,1778549441000,-152.0,0.00016688,2]
[422071285,1778549441000,-500.0,0.00016373,2]
[422071292,1778549441000,-198.87,0.00016572,2]
[422071293,1778549441000,-152.0,0.00016638,2]
[422071294,1778549441000,-152.0,0.00016655,2]
[422071296,1778549441000,-152.0,0.00016655,2]
[422071277,1778549441000,-500.0,0.00015421,2]
[422071295,1778549441000,-152.0,0.00016655,2]
[422071297,1778549441000,-152.0,0.00016688,2]
[422071299,1778549441000,-152.0,0.00016722,2]
[422071300,1778549441000,-605.72194096,0.00017566,2]
[422071301,1778549441000,-1716.32718456,0.00017566,2]
[422071291,1778549441000,-152.0,0.00016462,2]
[422071272,1778549441000,-150.0,0.00014877,2]
[422071268,1778549441000,-500.0,0.00014873,2]
[422071276,1778549441000,-1000.0,0.00015421,2]
[422071302,1778549441000,-198.87,0.00018229,2]
[422071248,1778549441000,-928784.97460815,0.000148,2]
[422071250,1778549441000,-230.40314214,0.000148,2]
[422071252,1778549441000,-1230260.3024,0.000148,2]
[422071253,1778549441000,-1200.0,0.000148,5]
[422071254,1778549441000,-150.0,0.00014819,2]
[422071251,1778549441000,-14267.32536754,0.000148,2]
[422071249,1778549441000,-1865.08966376,0.000148,2]
[422071256,1778549441000,-1716.32718463,0.00014835,2]
[422071255,1778549441000,-605.72194104,0.00014835,2]
[422071260,1778549441000,-500.0,0.00014873,2]
[422071278,1778549441000,-1007.75929957,0.00015421,2]
[422071259,1778549441000,-172.52923902,0.00014873,2]
[422071261,1778549441000,-500.0,0.00014873,2]
[422071266,1778549441000,-500.0,0.00014873,2]
[422071257,1778549441000,-281.73107568,0.00014835,2]
[422071258,1778549441000,-500.0,0.00014873,2]
[422071264,1778549441000,-170.20092839,0.00014873,2]
[422071263,1778549441000,-500.0,0.00014873,2]
[422071270,1778549441000,-150.0,0.00014877,2]
[422071280,1778549441000,-2500.0,0.000158,5]
[422071279,1778549441000,-443.17533034,0.00015421,2]
[422071271,1778549441000,-150.0,0.00014877,2]
[422071275,1778549441000,-1000.0,0.00015421,2]
[422071262,1778549441000,-166.84764043,0.00014873,2]
[422071304,1778549441000,-166.66,0.00018871,2]
[422071311,1778549441000,-170.92904101,0.00020261,8]
[422071303,1778549441000,-392.0,0.0001841,2]
[422071334,1778549441000,-1716.32718456,0.00023028,2]
[422071336,1778549441000,-288.0,0.00024,2]
[422071337,1778549441000,-651.0,0.00024,2]
[422071338,1778549441000,-210.0,0.00024,2]
[422071343,1778549441000,-214.64047585,0.00024513,30]
[422071341,1778549441000,-500.0,0.00024397,2]
[422071339,1778549441000,-170.92904101,0.0002415,13]
[422071340,1778549441000,-392.0,0.00024324,2]
[422071342,1778549441000,-506.0,0.00024397,2]
[422071344,1778549441000,-9752.04,0.00024529,30]
[422071345,1778549441000,-161.66,0.00024658,2]
[422071335,1778549441000,-185.86138977,0.00023628,2]
[422071347,1778549441000,-188.39,0.00024658,2]
[422071346,1778549441000,-329.42,0.00024658,2]
[422071356,1778549441000,-208.15897961,0.00025022,2]
[422071352,1778549441000,-165.01041431,0.00025,2]
[422071350,1778549441000,-329.42,0.00024946,2]
[422071354,1778549441000,-669.0,0.00025,2]
[422071355,1778549441000,-226.0,0.00025,2]
[422071353,1778549441000,-303.0,0.00025,2]
[422071351,1778549441000,-720.05,0.0002498,2]
[422071349,1778549441000,-329.42,0.00024802,7]
[422071358,1778549441000,-171.54,0.00025205,7]
[422071309,1778549441000,-157.0,0.0002,2]
[422071357,1778549441000,-214.82098671,0.00025022,2]
[422071331,1778549441000,-651.0,0.00023,2]
[422071348,1778549441000,-251.77109638,0.00024658,2]
[422071332,1778549441000,-210.0,0.00023,2]
[422071313,1778549441000,-605.72194096,0.00020297,2]
[422071330,1778549441000,-288.0,0.00023,2]
[422071305,1778549441000,-198.87,0.00019886,2]
[422071310,1778549441000,-157.0,0.0002,2]
[422071312,1778549441000,-208.0,0.00020278,2]
[422071307,1778549441000,-651.0,0.0002,2]
[422071306,1778549441000,-288.0,0.0002,2]
[422071315,1778549441000,-392.0,0.00020381,2]
[422071318,1778549441000,-210.0,0.00021,2]
[422071316,1778549441000,-288.0,0.00021,2]
[422071317,1778549441000,-651.0,0.00021,2]
[422071314,1778549441000,-1716.32718456,0.00020297,2]
[422071308,1778549441000,-210.0,0.0002,2]
[422071321,1778549441000,-166.66,0.00021986,2]
[422071327,1778549441000,-208.0,0.00022812,2]
[422071329,1778549441000,-9752.04,0.00022871,30]
[422071325,1778549441000,-392.0,0.00022353,2]
[422071333,1778549441000,-605.72194096,0.00023028,2]
[422071328,1778549441000,-257.26,0.00022871,30]
[422071326,1778549441000,-719.77,0.00022466,2]
[422071324,1778549441000,-210.0,0.00022,2]
[422071322,1778549441000,-288.0,0.00022,2]
[422071323,1778549441000,-651.0,0.00022,2]
[422071319,1778549441000,-168.54222813,0.00021,2]
[422071320,1778549441000,-172.0,0.00021,2]
[422071417,1778549442000,-152.0,0.00027097,7]
[422071399,1778549442000,-219.61,0.0002649,7]
[422071409,1778549442000,-500.0,0.00026977,2]
[422071400,1778549442000,-219.38,0.0002649,7]
[422071395,1778549442000,-219.61,0.00026433,2]
[422071392,1778549442000,-219.61,0.00026376,2]
[422071393,1778549442000,-219.61,0.00026404,7]
[422071397,1778549442000,-219.38,0.00026461,2]
[422071396,1778549442000,-219.38,0.00026433,2]
[422071388,1778549442000,-219.61,0.00026319,7]
[422071401,1778549442000,-219.61,0.00026518,7]
[422071394,1778549442000,-219.38,0.00026405,7]
[422071402,1778549442000,-219.38,0.00026518,7]
[422071422,1778549442000,-152.0,0.00027138,7]
[422071403,1778549442000,-219.38,0.00026546,2]
[422071407,1778549442000,-171.54,0.00026849,7]
[422071404,1778549442000,-219.61,0.00026546,2]
[422071406,1778549442000,-219.69,0.00026575,7]
[422071405,1778549442000,-219.46,0.00026575,7]
[422071411,1778549442000,-152.0,0.00027097,7]
[422071413,1778549442000,-152.0,0.00027097,7]
[422071414,1778549442000,-152.0,0.00027097,7]
[422071412,1778549442000,-152.0,0.00027097,7]
[422071415,1778549442000,-152.0,0.00027097,7]
[422071418,1778549442000,-152.0,0.00027097,7]
[422071420,1778549442000,-152.0,0.00027138,7]
[422071391,1778549442000,-219.38,0.00026376,2]
[422071408,1778549442000,-156.71,0.00026849,14]
[422071398,1778549442000,-219.61,0.00026461,2]
[422071364,1778549442000,-257.26,0.00025911,30]
[422071389,1778549442000,-219.61,0.00026347,7]
[422071366,1778549442000,-500.0,0.00025986,3]
[422071369,1778549442000,-219.61,0.00026091,2]
[422071370,1778549442000,-219.61,0.0002612,2]
[422071367,1778549442000,-219.61,0.00026035,2]
[422071371,1778549442000,-219.38,0.00026121,2]
[422071359,1778549442000,-165.01041431,0.000253,2]
[422071362,1778549442000,-605.72194096,0.00025759,2]
[422071361,1778549442000,-171.54,0.00025753,30]
[422071363,1778549442000,-1716.32718456,0.00025759,2]
[422071368,1778549442000,-219.61,0.00026063,7]
[422071360,1778549442000,-165.01041431,0.000255,2]
[422071365,1778549442000,-767.26218527,0.00025911,2]
[422071373,1778549442000,-219.38,0.00026149,7]
[422071390,1778549442000,-219.38,0.00026348,7]
[422071383,1778549442000,-219.61,0.0002629,2]
[422071374,1778549442000,-219.38,0.00026177,7]
[422071372,1778549442000,-219.61,0.00026148,7]
[422071385,1778549442000,-392.0,0.00026296,2]
[422071384,1778549442000,-219.38,0.00026291,2]
[422071378,1778549442000,-219.38,0.00026206,2]
[422071375,1778549442000,-219.61,0.00026177,7]
[422071377,1778549442000,-219.61,0.00026205,2]
[422071379,1778549442000,-219.38,0.00026234,7]
[422071380,1778549442000,-219.61,0.00026234,7]
[422071382,1778549442000,-219.38,0.00026263,2]
[422071381,1778549442000,-219.61,0.00026262,2]
[422071386,1778549442000,-171.54,0.00026301,2]
[422071387,1778549442000,-219.38,0.00026319,7]
[422071376,1778549442000,-9752.04,0.00026188,60]
[422071416,1778549442000,-152.0,0.00027097,7]
[422071410,1778549442000,-500.0,0.00026977,2]
[422071419,1778549442000,-152.0,0.00027138,7]
[422071459,1778549442000,-1047.11,0.000292,2]
[422071458,1778549442000,-500.0,0.00029163,6]
[422071455,1778549442000,-500.0,0.00028986,120]
[422071457,1778549442000,-5000.0,0.00029064,2]
[422071454,1778549442000,-257.26,0.00028951,60]
[422071452,1778549442000,-16268.0,0.000287,2]
[422071460,1778549442000,-500.0,0.0002945,18]
[422071462,1778549442000,-9752.04,0.00029504,60]
[422071464,1778549442000,-500.0,0.00029753,120]
[422071468,1778549442000,-5676.16675541,0.00030137,120]
[422071467,1778549442000,-200.0,0.00030137,2]
[422071465,1778549442000,-1047.11,0.0003,30]
[422071466,1778549442000,-161.66,0.00030137,2]
[422071456,1778549442000,-677.15,0.00029,7]
[422071469,1778549442000,-3907.59,0.000302,14]
[422071463,1778549442000,-1047.11,0.000296,2]
[422071473,1778549442000,-1047.11,0.000304,30]
[422071471,1778549442000,-5530.0,0.000303,5]
[422071472,1778549442000,-286.55198189,0.00030372,44]
[422071475,1778549442000,-154.0,0.00030552,30]
[422071474,1778549442000,-208.0,0.00030417,120]
[422071479,1778549442000,-160.0,0.00030552,30]
[422071478,1778549442000,-157.0,0.00030552,30]
[422071477,1778549442000,-157.0,0.00030552,30]
[422071481,1778549442000,-159.0,0.00030558,30]
[422071483,1778549442000,-288.0,0.00030558,30]
[422071480,1778549442000,-152.0,0.00030558,30]
[422071421,1778549442000,-152.0,0.00027138,7]
[422071470,1778549442000,-392.0,0.00030239,2]
[422071453,1778549442000,-1047.11,0.000288,2]
[422071476,1778549442000,-210.0,0.00030552,30]
[422071461,1778549442000,-5530.0,0.000295,3]
[422071450,1778549442000,-605.72194096,0.00028491,2]
[422071424,1778549442000,-152.0,0.00027138,7]
[422071434,1778549442000,-500.0,0.00027575,5]
[422071435,1778549442000,-152.0,0.00027584,7]
[422071423,1778549442000,-152.0,0.00027138,7]
[422071426,1778549442000,-152.0,0.00027178,7]
[422071427,1778549442000,-152.0,0.00027178,7]
[422071425,1778549442000,-152.0,0.00027178,7]
[422071431,1778549442000,-4746.82,0.00027397,10]
[422071433,1778549442000,-3907.59,0.000274,14]
[422071432,1778549442000,-161.96,0.000274,7]
[422071428,1778549442000,-171.54,0.00027397,30]
[422071429,1778549442000,-1500.0,0.00027397,2]
[422071430,1778549442000,-161.66,0.00027397,2]
[422071436,1778549442000,-677.15,0.000276,7]
[422071439,1778549442000,-500.0,0.000278,7]
[422071437,1778549442000,-152.0,0.00027623,7]
[422071445,1778549442000,-14267.32536753,0.00027906,2]
[422071448,1778549442000,-500.0,0.00028082,120]
[422071451,1778549442000,-1716.32718456,0.00028491,2]
[422071444,1778549442000,-230.40314214,0.00027906,2]
[422071449,1778549442000,-392.0,0.00028267,2]
[422071447,1778549442000,-166.5,0.00028055,120]
[422071442,1778549442000,-208.0,0.00027882,120]
[422071443,1778549442000,-1865.08966374,0.00027906,2]
[422071438,1778549442000,-500.0,0.00027677,5]
[422071441,1778549442000,-281.73107568,0.00027868,2]
[422071440,1778549442000,-9752.04,0.00027846,60]
[422071446,1778549442000,-170.92904101,0.00028038,18]
[422071518,1778549443000,-159.0,0.00031558,30]
[422071519,1778549443000,-288.0,0.00031558,30]
[422071520,1778549443000,-651.0,0.00031558,30]
[422071528,1778549443000,-199.06684701,0.00032,120]
[422071525,1778549443000,-221.4990997,0.00032,120]
[422071521,1778549443000,-156.0,0.00031558,30]
[422071522,1778549443000,-205.01484921,0.00031927,22]
[422071523,1778549443000,-257.26,0.00031992,60]
[422071526,1778549443000,-344.2004045,0.00032,120]
[422071524,1778549443000,-175.6979719,0.00032,120]
[422071532,1778549443000,500.0,0.00027397,120]
[422071527,1778549443000,-198.84359442,0.00032,120]
[422071530,1778549443000,-374.58278736,0.00032,14]
[422071531,1778549443000,-999.21765633,0.00032,14]
[422071529,1778549443000,-190.20319574,0.00032,120]
[422071534,1778549443000,-196.66,0.00026575,7]
[422071533,1778549443000,-196.65,0.0002603,2]
[422071535,1778549443000,-150.0,0.00026849,2]
[422071517,1778549443000,-152.0,0.00031558,30]
[422071548,1778549443000,-157.0,0.00032552,30]
[422071516,1778549443000,-160.0,0.00031552,30]
[422071515,1778549443000,-157.0,0.00031552,30]
[422071496,1778549443000,-677.15,0.000307,7]
[422071512,1778549443000,-154.0,0.00031552,30]
[422071547,1778549443000,-210.0,0.00032552,30]
[422071485,1778549443000,-651.0,0.00030558,30]
[422071488,1778549443000,-156.0,0.00030558,30]
[422071491,1778549443000,-178.419,0.00030667,2]
[422071495,1778549443000,-3228.747,0.00030667,2]
[422071492,1778549443000,-1000.0,0.00030667,2]
[422071494,1778549443000,-3629.0,0.00030667,2]
[422071490,1778549443000,-1223.0,0.00030667,2]
[422071501,1778549443000,-200.0,0.00031108,2]
[422071493,1778549443000,-314.615,0.00030667,2]
[422071499,1778549443000,-281.33,0.00031096,2]
[422071497,1778549443000,-500.0,0.00030752,8]
[422071498,1778549443000,-1047.11,0.000308,30]
[422071502,1778549443000,-9752.04,0.00031162,60]
[422071507,1778549443000,-1716.32718456,0.00031222,2]
[422071505,1778549443000,-605.72194096,0.00031222,2]
[422071510,1778549443000,-577.0,0.00031544,5]
[422071503,1778549443000,-1047.11,0.000312,30]
[422071514,1778549443000,-157.0,0.00031552,30]
[422071513,1778549443000,-210.0,0.00031552,30]
[422071509,1778549443000,-1000.0,0.000315,7]
[422071511,1778549443000,-656.0,0.00031544,5]
[422071537,1778549443000,-150.0,0.00029601,2]
[422071500,1778549443000,-161.96,0.000311,7]
[422071538,1778549443000,-2533.78955631,0.00032,14]
[422071564,1778549443000,-198.84359442,0.00033,120]
[422071574,1778549443000,-152.0,0.00033558,30]
[422071567,1778549443000,-350.0,0.00033014,5]
[422071566,1778549443000,-173.0,0.00033,14]
[422071576,1778549443000,-288.0,0.00033558,30]
[422071573,1778549443000,-160.0,0.00033552,30]
[422071569,1778549443000,-154.0,0.00033552,30]
[422071571,1778549443000,-157.0,0.00033552,30]
[422071570,1778549443000,-210.0,0.00033552,30]
[422071568,1778549443000,-161.96,0.000331,30]
[422071577,1778549443000,-651.0,0.00033558,30]
[422071580,1778549443000,-3629.0,0.00033667,2]
[422071579,1778549443000,-1223.0,0.00033667,2]
[422071585,1778549443000,-344.2004045,0.000339,120]
[422071583,1778549443000,-152.0,0.00033869,120]
[422071584,1778549443000,-221.4990997,0.000339,120]
[422071581,1778549443000,-1112.093,0.00033705,36]
[422071582,1778549443000,-152.0,0.00033869,120]
[422071578,1778549443000,-156.0,0.00033558,30]
[422071586,1778549443000,-198.84359442,0.000339,120]
[422071536,1778549443000,-150.0,0.00028192,2]
[422071575,1778549443000,-159.0,0.00033558,30]
[422071565,1778549443000,-197.42586431,0.00033,120]
[422071572,1778549443000,-157.0,0.00033552,30]
[422071560,1778549443000,-648.94856035,0.00032877,10]
[422071541,1778549443000,-392.0,0.0003221,5]
[422071539,1778549443000,-197.42586431,0.00032,120]
[422071542,1778549443000,-500.0,0.00032341,10]
[422071540,1778549443000,-200.0,0.00032055,2]
[422071559,1778549443000,-500.0,0.00032877,10]
[422071545,1778549443000,-237.0,0.0003249,2]
[422071546,1778549443000,-154.0,0.00032552,30]
[422071543,1778549443000,-677.15,0.000324,7]
[422071549,1778549443000,-157.0,0.00032552,30]
[422071550,1778549443000,-160.0,0.00032552,30]
[422071551,1778549443000,-152.0,0.00032558,30]
[422071544,1778549443000,-247.0,0.0003249,2]
[422071554,1778549443000,-651.0,0.00032558,30]
[422071555,1778549443000,-156.0,0.00032558,30]
[422071556,1778549443000,-9752.04,0.00032821,90]
[422071557,1778549443000,-161.66,0.00032877,2]
[422071558,1778549443000,-158.58,0.00032877,60]
[422071561,1778549443000,-221.4990997,0.00033,120]
[422071563,1778549443000,-199.06684701,0.00033,120]
[422071552,1778549443000,-159.0,0.00032558,30]
[422071562,1778549443000,-344.2004045,0.00033,120]
[422071553,1778549443000,-288.0,0.00032558,30]
[422071595,1778549444000,-7410.82498495,0.00034479,90]
[422071592,1778549444000,-3907.59,0.00034,14]
[422071593,1778549444000,-392.0,0.00034182,7]
[422071607,1778549444000,-210.0,0.00034552,30]
[422071590,1778549444000,-1716.32718456,0.00033953,2]
[422071606,1778549444000,-154.0,0.00034552,30]
[422071588,1778549444000,-152.0,0.00033934,120]
[422071602,1778549444000,-795.37894545,0.00034479,90]
[422071591,1778549444000,-350.0,0.00033973,5]
[422071589,1778549444000,-605.72194096,0.00033953,2]
[422071587,1778549444000,-500.0,0.00033929,11]
[422071597,1778549444000,-426.5,0.00034479,90]
[422071604,1778549444000,-840.23504112,0.00034479,90]
[422071600,1778549444000,-279.10102848,0.00034479,90]
[422071616,1778549444000,-1500.0,0.00034795,2]
[422071609,1778549444000,-157.0,0.00034552,30]
[422071608,1778549444000,-157.0,0.00034552,30]
[422071620,1778549444000,-344.2004045,0.00035,120]
[422071623,1778549444000,-509.70647062,0.000352,7]
[422071621,1778549444000,-677.15,0.00035,7]
[422071615,1778549444000,-156.0,0.00034558,30]
[422071619,1778549444000,-221.4990997,0.00035,120]
[422071622,1778549444000,-257.26,0.00035032,90]
[422071614,1778549444000,-651.0,0.00034558,30]
[422071612,1778549444000,-159.0,0.00034558,30]
[422071613,1778549444000,-288.0,0.00034558,30]
[422071618,1778549444000,-417.19061879,0.00034983,2]
[422071611,1778549444000,-152.0,0.00034558,30]
[422071610,1778549444000,-160.0,0.00034552,30]
[422071617,1778549444000,-350.0,0.00034931,5]
[422071639,1778549446000,-582.0,0.00035284,30]
[422071642,1778549446000,-210.0,0.00035552,30]
[422071643,1778549446000,-157.0,0.00035552,30]
[422071637,1778549446000,-432.0,0.00035284,30]
[422071640,1778549446000,-161.96,0.000353,30]
[422071647,1778549446000,-164.0,0.00035558,30]
[422071646,1778549446000,-156.0,0.00035558,30]
[422071648,1778549446000,-288.0,0.00035558,30]
[422071638,1778549446000,-355.0,0.00035284,30]